Cogmind - Beta 11.1 @@@ ROGUE MODE // 2022.06.05 @ 20:51:07 Player: darki Result: Destroyed by G-34 Mercenary with Small Laser Performance ------------- Evolutions (1) 500 Regions Visited (3) 600 Robots Destroyed (21) 105 Value Destroyed (625) 625 Prototype IDs (2) 40 Alien Tech Used (0) 0 Bonus (0) 0 TOTAL SCORE: 1870 Bonus ------- None Cogmind --------- Core Integrity 0/400 Matter 197/300 Energy 85/100 System Corruption 0% Temperature Cool (6) Movement Walking (190) Ox1 Location -9/Materials Parts ------- > --- POWER (1) -------- (None) > --- PROPULSION (2) --- Aluminum Leg Aluminum Leg > --- UTILITY (4) ------ Large Storage Unit Melee Analysis Suite Core Shielding Core Shielding > --- WEAPON (2) ------- Rocket Launcher Mining Claw > --- INVENTORY (15) --- Aluminum Leg Flight Unit Flight Unit Flight Unit Improved Flight Unit Propulsion Shielding Rocket Launcher Rocket Launcher Peak State ------------ > --- POWER ------------ Ion Engine > --- PROPULSION ------- Aluminum Leg Aluminum Leg > --- UTILITY ---------- Heat Sink Cooling System Cooling System Large Storage Unit > --- WEAPON ----------- Improved Assault Rifle Improved Assault Rifle > --- INVENTORY -------- Light Ion Engine Aluminum Leg Aluminum Leg Aluminum Leg Flight Unit Flight Unit Flight Unit Improved Flight Unit Core Shielding Propulsion Shielding Rocket Launcher Rocket Launcher Rocket Launcher Rocket Launcher Mining Claw [Rating: 17] Favorites ----------- Power Light Ion Engine Engine Light Ion Engine Propulsion Aluminum Leg Leg Aluminum Leg Flight Unit Flight Unit Utility Large Storage Unit Device Cooling System Storage Large Storage Unit Processor Signal Interpreter Protection Core Shielding Weapon Improved Assault Rifle Ballistic Gun Improved Assault Rifle Launcher Rocket Launcher Slashing Weapon Mining Claw Build | -11 -10 -10 -9 ------- Run | Scr Mat Min Mat Slots Evolved 2 | . . . 2 Power . | . . . . Propulsion . | . . . . Utility 2 | . . . 2 Weapon . | . . . . Parts Attached 30 | . 6 . 24 Power 3 | . . . 3 Engine 3 | . . . 3 Core . | . . . . Reactor . | . . . . Propulsion 11 | . 1 . 10 Treads . | . . . . Leg 9 | . 1 . 8 Wheel . | . . . . Hover . | . . . . Flight 2 | . . . 2 Utility 9 | . 2 . 7 Device 4 | . . . 4 Storage 1 | . 1 . . Processor 2 | . 1 . 1 Hackware . | . . . . Protection 2 | . . . 2 Artifact . | . . . . Weapon 7 | . 3 . 4 Energy Gun . | . . . . Energy Cannon . | . . . . Ballistic Gun 4 | . 3 . 1 Ballistic Cannon . | . . . . Launcher 2 | . . . 2 Special Weapon . | . . . . Impact Weapon . | . . . . Slashing Weapon 1 | . . . 1 Piercing Weapon . | . . . . Special Melee Weapon . | . . . . Unidentified Prototypes 2 | . 1 . 1 Parts Lost 13 | . . . 13 Power 3 | . . . 3 Propulsion 4 | . . . 4 Utility 3 | . . . 3 Weapon 3 | . . . 3 Highest Loss Streak 8 | . . . 8 To Critical Strikes . | . . . . Average Slot Usage (%) 93 | . 99 100 84 Engine 12 | . 14 14 9 Leg 24 | . 28 28 19 Device 5 | . . . 13 Storage 13 | . 15 14 11 Processor 9 | . 11 14 5 Protection 1 | . . . 3 Ballistic Gun 24 | . 27 28 18 Naked Turns . | . . . . Heaviest Build 36 | 11 31 29 36 Greatest Support 20 | 20 20 20 20 Greatest Overweight (x) 9 | . 1 1 9 Average Overweight (x) 1 | . . 1 1 Largest Inventory Capacity 15 | . 15 15 15 Average Capacity 14 | . 14 15 15 Most Carried 15 | . 15 11 15 Average Carried 10 | . 9 11 12 Final Capacity 15 | 8 15 15 15 Final Carried 11 | 6 11 11 8 Class Distribution -------------------- 75% | Mutant 24% | Scavenger-Mutant Dominant Class ---------------- Mutant | -10/Materials Mutant | -10/Mines Scavenger-Mutant | -9/Materials Resources | -11 -10 -10 -9 ----------- Run | Scr Mat Min Mat Matter Collected 632 | 200 142 . 290 Remotely . | . . . . Salvage Created 660 | . 223 . 437 Parts 37 | . 13 . 24 Haulers Intercepted . | . . . . Recyclers Shooed . | . . . . Parts Field Recycled . | . . . . Retrieved Matter . | . . . . Parts Self-Destructed . | . . . . Prevented . | . . . . Kills | -11 -10 -10 -9 ------- Run | Scr Mat Min Mat Combat Hostiles Destroyed 20 | . 8 . 12 Melee 1 | . . . 1 Guns 15 | . 8 . 7 AOE 4 | . . . 4 Classes Destroyed 6 | . 3 . 3 Watcher 1 | . 1 . . Swarmer 5 | . 5 . . Grunt 12 | . 3 . 9 Brawler 1 | . . . 1 Duelist 1 | . . . 1 Sentry 1 | . . . 1 Best Kill Streak 6 | . 5 . 6 Combat Bots Only 6 | . 2 . 6 Max Kills in Single Turn 2 | . 1 . 2 Gunslinging . | . . . . Exploded 2 | . . . 2 Melee 1 | . . . 1 Uniques/NPCs Destroyed . | . . . . Combat | -11 -10 -10 -9 -------- Run | Scr Mat Min Mat Damage Taken 1844 | . 374 . 1470 Core 490 | . 85 . 405 Absorbed by Shields . | . . . . Redirected to Shielding 26 | . . . 26 Core Remaining (%) 83 | 100 . 66 . Volleys Fired 63 | . 36 . 27 Largest 2 | . 2 . 2 Hottest 46 | . 40 . 46 Shots Fired 122 | . 72 . 50 Gun 120 | . 72 . 48 Cannon . | . . . . Launcher 2 | . . . 2 Special . | . . . . Kinetic 120 | . 72 . 48 Thermal . | . . . . Explosive 2 | . . . 2 Electromagnetic . | . . . . Robot Hit Streak 10 | . 10 . 8 Robot Miss Streak 9 | . 9 . 2 Penetration Max . | . . . . Secondary Targets 1 | . 1 . . Max Gunslinging Chain 1 | . 1 . . Shots Hit Robots 63 | . 32 . 31 Core Hits 33 | . 16 . 17 Critical Kills 1 | . . . 1 Critical Parts Destroyed . | . . . . Critical Strikes 1 | . . . 1 Destroy 1 | . . . 1 Melee Attacks 4 | . . . 4 Impact . | . . . . Slashing 4 | . . . 4 Piercing . | . . . . Sneak Attacks . | . . . . Combat Hostiles . | . . . . Follow-up Attacks . | . . . . Damage Inflicted 1496 | . 397 . 1099 Guns 797 | . 381 . 416 Cannons . | . . . . Explosions 631 | . . . 631 Melee 52 | . . . 52 Ramming 16 | . 16 . . Kinetic 797 | . 381 . 416 Thermal . | . . . . Explosive 631 | . . . 631 Electromagnetic . | . . . . Impact . | . . . . Slashing 52 | . . . 52 Piercing . | . . . . Highest Corruption . | . . . . Average Corruption . | . . . . Corruption Purged . | . . . . Corruption Blocked . | . . . . Overload Shots . | . . . . Overflow Damage 77 | . . . 77 Projectiles . | . . . . Explosions 77 | . . . 77 Melee . | . . . . Knockbacks . | . . . . Impact . | . . . . Kinetic . | . . . . Secondary . | . . . . Self-Inflicted Damage 145 | . . . 145 Shots 3 | . . . 3 Rammed . | . . . . Targets Rammed 3 | . 3 . . Kicked 3 | . 3 . . Crushed . | . . . . Highest Temperature 12 | . 12 . 1 Average Temperature 4 | . 7 . 1 Received Heat Transfer 570 | . 66 . 504 Siege Activations . | . . . . Robots Corrupted . | . . . . Combat Hostiles . | . . . . Parts Fried . | . . . . Impact Corruptions . | . . . . Robots Melted . | . . . . Combat Hostiles . | . . . . Parts Melted . | . . . . Heat Transferred . | . . . . Parts Sabotaged . | . . . . Parts Stolen . | . . . . Parts Stripped . | . . . . Power Chain Reactions . | . . . . Missiles Intercepted . | . . . . Alert | -11 -10 -10 -9 ------- Run | Scr Mat Min Mat Peak Influence 263 | . 170 19 263 Initial 19 | . . 19 7 Average 80 | . 86 19 77 Maximum Alert Level 1 | . . . 1 Low Security (%) 96 | . 100 100 89 Level 1 4 | . . . 10 Level 2 . | . . . . Level 3 . | . . . . Level 4 . | . . . . Level 5 . | . . . . High Security . | . . . . Max Security . | . . . . Squads Dispatched 4 | . 3 . 1 Investigation 1 | . 1 . . Extermination . | . . . . Reinforcement 3 | . 2 . 1 Assault . | . . . . Garrison . | . . . . Intercept . | . . . . Searches Triggered . | . . . . Construction Impeded . | . . . . Haulers Reinforced . | . . . . Active Scanning Responses . | . . . . Cargo Convoy Interrupts . | . . . . Stealth | -11 -10 -10 -9 --------- Run | Scr Mat Min Mat Distress Signals 4 | . 2 . 2 Communications Jammed . | . . . . Distress Signals . | . . . . Times Spotted 30 | . 12 . 18 Peak Tracking Total 9 | . 3 . 9 Tactical Retreats . | . . . . Traps | -11 -10 -10 -9 ------- Run | Scr Mat Min Mat Traps Triggered 1 | . 1 . . Indirectly . | . . . . Trap Hack Attempts . | . . . . Triggered . | . . . . Disarmed . | . . . . Reprogrammed . | . . . . Reused . | . . . . Traps Extracted . | . . . . Installed . | . . . . Triggered . | . . . . Machines | -11 -10 -10 -9 ---------- Run | Scr Mat Min Mat Machines Disabled 1 | . . . 1 Max in Single Turn 1 | . . . 1 Machines Sabotaged . | . . . . Garrisons Compromised . | . . . . Overloaded Fab Kills . | . . . . Hacking | -11 -10 -10 -9 --------- Run | Scr Mat Min Mat Machines Accessed 3 | . 2 . 1 Terminals 3 | . 2 . 1 Fabricators . | . . . . Repair Stations . | . . . . Recycling Units . | . . . . Scanalyzers . | . . . . Garrison Access . | . . . . Total Hacks 6 | . 4 . 2 Successful 3 | . 2 . 1 Failed 3 | . 2 . 1 Catastrophic . | . . . . Database Lockouts . | . . . . Manual 6 | . 4 . 2 Terminals 6 | . 4 . 2 Fabricators . | . . . . Repair Stations . | . . . . Recycling Units . | . . . . Scanalyzers . | . . . . Garrison Access . | . . . . Terminal Hacks 1 | . . . 1 Branch Access Points 1 | . . . 1 Fabricator Hacks . | . . . . Repair Station Hacks . | . . . . Recycling Unit Hacks . | . . . . Scanalyzer . | . . . . Garrison Access Hacks . | . . . . Unauthorized Hacks 2 | . 2 . . Terminals 2 | . 2 . . Botnet 2 | . 2 . . Fabricators . | . . . . Repair Stations . | . . . . Recycling Units . | . . . . Scanalyzers . | . . . . Garrison Access . | . . . . Data Cores Recovered . | . . . . Used . | . . . . Hacking Detections 2 | . 1 . 1 Full Trace Events . | . . . . Feedback Events . | . . . . Feedback Blocked . | . . . . Robot Schematics Acquired . | . . . . Robots Built . | . . . . Authchips . | . . . . Time . | . . . . Total Robot Build Rating . | . . . . Part Schematics Acquired . | . . . . Parts Built . | . . . . Authchips . | . . . . Time . | . . . . Total Part Build Rating . | . . . . Parts Repaired . | . . . . Time . | . . . . Parts Recycled . | . . . . Recycled Matter . | . . . . Retrieved Matter . | . . . . Retrieved Components . | . . . . Parts Scanalyzed . | . . . . Part Schematics Acquired . | . . . . Parts Damaged . | . . . . Bothacking | -11 -10 -10 -9 ------------ Run | Scr Mat Min Mat Used RIF Installer . | . . . . Robots Hacked . | . . . . Non-combat . | . . . . Combat . | . . . . Robot Hacks Applied . | . . . . Relay Couplers Released . | . . . . Fabnet Peak Effective % . | . . . . Robots Rewired . | . . . . Allies Hacked . | . . . . Hacks Repelled . | . . . . Allies | -11 -10 -10 -9 -------- Run | Scr Mat Min Mat Total Allies . | . . . . Largest Group . | . . . . Highest-Rated Group . | . . . . Highest-Rated Ally . | . . . . Total Orders . | . . . . Ally Attacks . | . . . . Total Damage . | . . . . Kills . | . . . . Allies Corrupted . | . . . . Allies Melted . | . . . . Intel | -11 -10 -10 -9 ------- Run | Scr Mat Min Mat Robot Analysis Total . | . . . . Derelict Logs Recovered . | . . . . Drone Launches . | . . . . Drone Recoveries . | . . . . Exploration | -11 -10 -10 -9 ------------- Run | Scr Mat Min Mat Turns Passed 1100 | . 628 42 430 Spaces Moved 420 | 1 258 23 138 Core 1 | . . . 1 Treads . | . . . . Legs 419 | 1 258 23 137 Wheels . | . . . . Hover . | . . . . Flight . | . . . . Fastest Speed 120 | 120 120 190 190 Average Speed 193 | 120 185 190 211 Slowest Speed 500 | 120 190 190 500 Overloaded Moves . | . . . . Propulsion Burnouts . | . . . . Robots Hopped . | . . . . Cave-ins Triggered . | . . . . Exploration Rate (%) 25 | 2 72 13 14 Regions Visited 3 Branch Regions 1 Pre-discovered Areas . | . . . . Known Exits Taken 2 | . 1 1 . Unknown Exits Taken 1 | 1 . . . Scrap Searched . | . . . . Spaces Dug . | . . . . Terrain Destroyed 20 | . . . 20 Melee . | . . . . Projectile . | . . . . AOE 20 | . . . 20 Terrain Rammed . | . . . . Walls Destroyed . | . . . . Machines Disabled . | . . . . Actions | -11 -10 -10 -9 --------- Run | Scr Mat Min Mat Total 580 | . 345 22 213 Wait 35 | . 21 . 14 Move 417 | . 257 22 138 Hop . | . . . . Pick Up 12 | . 11 . 1 Fast Attach 14 | . 5 . 9 Attach 9 | . . . 9 Detach 2 | . . . 2 Swap 7 | . 1 . 6 Drop 14 | . 11 . 3 Fire 63 | . 36 . 27 Melee 4 | . . . 4 Ram . | . . . . Kick 3 | . 3 . . Crush . | . . . . Escape Stasis . | . . . . Rewire . | . . . . Trap . | . . . . Miscellaneous . | . . . . Route ------- -11/Scrapyard -10/Materials (discovered 2 exits: *Mat / *Min) -10/Mines -9/Materials (discovered 3 exits: Min / Sto x2) History --------- Turn | Location | Event 1 | -11/Scrapyard | Discovered new exit (range 0) 1 | -11/Scrapyard | Entered Materials 314 | -10/Materials | Build established: Mutant 487 | -10/Materials | Discovered new exit (range 13) 544 | -10/Materials | Identified exit to Materials 603 | -10/Materials | Discovered new exit (range 13) 627 | -10/Materials | Identified exit to Mines 629 | -10/Materials | Entered Mines 643 | -10/Mines | Discovered exit to Materials (range 11) 671 | -10/Mines | Entered Materials 671 | -9/Materials | Evolved 2 slots: Utility x2 853 | -9/Materials | Lost 3 parts (1p1n1u) 989 | -9/Materials | Identified exit to Mines 989 | -9/Materials | Identified exit to Storage 1023 | -9/Materials | Core integrity fell below 50% 1033 | -9/Materials | Core integrity fell below 20% 1071 | -9/Materials | Lost 8 parts (1p3n2u2w) 1101 | -9/Materials | Destroyed by G-34 Mercenary with Small Laser Last Messages --------------- 01061_ R-06 Scavenger collects Aluminum Leg. 01065_ U-05 Engineer lays Concrete. 01065_ R-06 Scavenger collects Ion Engine. 01066_ U-05 Engineer lays Concrete. 01068_ R-06 Scavenger collects Sml. Laser. 01068_ U-05 Engineer lays Concrete. 01073_ U-05 Engineer builds a Wall. 01073_ U-05 Engineer lays Concrete. 01074_ Acquired Aluminum Leg. 01074_ U-05 Engineer lays Concrete. 01077_ Lgt. Ion Engine destroyed. 01077_ U-05 Engineer lays Concrete. 01077_ R-06 Scavenger collects Heat Sink. 01077_ U-05 Engineer lays Concrete. 01079_ Imp. Assault Rifle destroyed. 01079_ U-05 Engineer lays Concrete. 01080_ U-05 Engineer builds a Wall. 01080_ U-05 Engineer lays Concrete. 01087_ The unstable cave ceiling collapses. 01087_ U-05 Engineer lays Concrete. Map ----- +----------------------------------------------------+ | ????????????????????????????????????# #????????? | | ????????????????????????????????????# #????????? | | ?????????????????????????????######## #????????? | | ?????????????????????????????# # #????????? | | ?????????????????????????????# # #????????? | | ?????????????????????????????# ! +" #????????? | | ?????????????????????????????# #%" #????????? | | ?????????????????????????????# #" #????????? | | ?????????????????????????????# # #????????? | | ?????????????????????????????##+##### #????????? | | ??????????????????????????????# ##### #????????? | | ????????????????????????????### ### #????????? | | ????????????????????????????# ## +????????? | | ???????????????????????????## #????????? | | ???????????????????????????# % #????????? | | ???????????????????????????# %[ #????????? | | ???????????????????????????# # = #????????? | | ??????????????????????????## ! #????????? | | ?????????????????????????##!! %!#????????? | | ?????????????????????????#! [ ####### ?? | | ?????????????????????????#! ^ | | ?????????????????????????#! | | ?????????????????????????#! ^ | | ?????????????????????????##!!## "T" ^ ## | | ???????????????????############ ^ #??? | | ???????????????????# @ g #???? | | ???????????? r g #???? | | ?????????? w ! #???? | | ??????????? !! "#???? | | ???????????######### """ r""" """ !! T#???? | | ???????????????????## """ """ """ ! "#???? | | ????????????????????# """ """ """ ????? | | ????????????????????# #???? | | ????????????????????+ ?????? | | ????????????????????# ??????? | | ?????????????????????? ??? ! ??????? | | ?????????????????????? ! ???????????? | | ?????????????????????#"T"###########+#???????????? | | ????????????????????????#????????????????????????? | | ?????????????????????????????????????????????????? | | ?????????????????????????????????????????????????? | | ?????????????????????????????????????????????????? | | ?????????????????????????????????????????????????? | | ?????????????????????????????????????????????????? | | ?????????????????????????????????????????????????? | | ?????????????????????????????????????????????????? | | ?????????????????????????????????????????????????? | | ?????????????????????????????????????????????????? | | ?????????????????????????????????????????????????? | | ?????????????????????????????????????????????????? | +----------------------------------------------------+ Best States ------------- Heat Dissipation 82 Energy Generation 10 Energy Capacity 250 Matter Stores 300 Matter Capacity 300 Sight Range 16 Terrain Scan Density 10 Core Shielding 20 Evasion (%) 45 Melee Accuracy 5 Item Schematics ----------------- None Robot Schematics ------------------ None Fabricated ------------ Nothing Alien Tech Used ----------------- None Achievements -------------- None Challenges ------------ None Game ------ Seed ScanAluminumBay Manual? 0 Play Time 00:09:46 Cumulative 94.7 hours Start 2022.06.05 @ 20:43:57 End 2022.06.05 @ 20:51:07 Sessions 1 Manual Loads 0 Difficulty Rogue Special Mode None Game No. 105 Rogue 105 Adventurer 0 Explorer 0 Win Type - Total 0 Types 0/0/0/0/0/0/0/0/0 Lore% 48 Gallery% 61 Achievement% 45 Wizard Run 0 Options --------- ASCII 0 Keyboard 0 Movement Mouse Keybinds 0 Fullscreen 1 Font 18/SmallcapsGlow Map View 76x50 Tactical HUD 1 Map Filters NONE Filters NONE Steam 1 RUN: a0ff4967-0018-45bb-b8f9-2e20a538b57e